[Event "FIN-ch Seniors 65 2020"]
[Site "Helsinki"]
[Date "2020.09.24"]
[Round "1.1"]
[White "Ruotanen, Helge"]
[Black "Jarnstrom, Henrik"]
[Result "1-0"]
[ECO "A00"]
[WhiteElo "1946"]
[BlackElo "1696"]
[Annotator "NA"]
[PlyCount "87"]
[EventDate "2020.09.24"]
[EventType "swiss"]
[EventCountry "FIN"]
[SourceTitle "playchess.com"]
[Source "ChessBase"]
[SourceQuality "1"]
[TimeControl "40/5400+30:1800+30"]

1. d3 {[%emt 0:00:00]} d5 {[%emt 0:02:19]} 2. g3 {[%emt 0:00:23]} Nf6 {[%emt 0:01:48]} 3. Bg2 {[%emt 0:00:30]} g6 {[%emt 0:01:07]} 4. Bg5 {[%emt 0:01:19]} Bg7 {[%emt 0:00:50]} 5. Nc3 {[%emt 0:01:11]} c6 {[%emt 0:01:23]} 6. Nf3 {[%emt 0:01:06]} h6 {[%emt 0:05:00]} 7. Bd2 {[%emt 0:00:27]} Na6 {[%emt 0:04:57]} 8. e4 {[%emt 0:01:04]} dxe4 {[%emt 0:06:35]} 9. dxe4 {[%emt 0:00:30]} Bg4 {[%emt 0:03:36]} 10. h3 {[%emt 0:02:04]} Be6 {[%emt 0:01:53]} 11. Qe2 {[%emt 0:04:28]} Qc7 {[%emt 0:04:57]} 12. Nd4 {[%emt 0:03:12]} Qe5 {[%emt 0:06:27]} 13. Be3 {[%emt 0:02:10]} Bc8 {[%emt 0:02:40]} 14. f4 {[%emt 0:01:02]} Qa5 {[%emt 0:00:51]} 15. Nb3 {[%emt 0:05:52]} Qc7 {[%emt 0:02:05]} 16. e5 {[%emt 0:00:39]} Nh7 {[%emt 0:01:37]} 17. Qf2 {[%emt 0:00:57]} Bd7 {[%emt 0:00:37]} 18. Bxa7 {[%emt 0:00:32]} O-O {[%emt 0:01:31]} 19. Bb6 {[%emt 0:00:04]} Qc8 {[%emt 0:00:26]} 20. O-O-O {[%emt 0:01:13]} f6 {[%emt 0:00:47]} 21. Qd4 {[%emt 0:01:25]} Be6 {[%emt 0:01:45]} 22. exf6 {[%emt 0:02:19]} Nxf6 {[%emt 0:02:54]} 23. Qe3 {[%emt 0:01:51]} Re8 {[%emt 0:05:40]} 24. a3 {[%emt 0:02:12]} Bf7 {[%emt 0:01:03]} 25. g4 {[%emt 0:01:16]} Kh7 {[%emt 0:01:52]} 26. Qd3 {[%emt 0:03:18]} e6 {[%emt 0:02:15]} 27. Qg3 {[%emt 0:03:59]} Nd5 {[%emt 0:01:48]} 28. Nxd5 {[%emt 0:03:34]} cxd5 {[%emt 0:00:15]} 29. Qf2 {[%emt 0:00:05]} Qc6 {[%emt 0:03:04]} 30. Rd2 {[%emt 0:02:15]} Rac8 {[%emt 0:00:23]} 31. h4 {[%emt 0:00:23]} Qb5 {[%emt 0:01:26]} 32. Rh3 {[%emt 0:00:08]} Kg8 {[%emt 0:02:36]} 33. Bf1 {[%emt 0:00:28]} Qc6 {[%emt 0:01:37]} 34. h5 {[%emt 0:00:57]} e5 {[%emt 0:01:11]} 35. hxg6 {[%emt 0:00:29]} Bxg6 {[%emt 0:01:09]} 36. f5 {[%emt 0:00:52]} Bh7 {[%emt 0:00:41]} 37. Rhd3 {[%emt 0:03:16]} d4 {[%emt 0:01:03]} 38. Ba5 {[%emt 0:01:33]} e4 {[%emt 0:01:54]} 39. Bg2 {[%emt 0:08:57]} Qc4 {[%emt 0:02:13]} 40. Rxd4 {[%emt 0:00:09]} Qxb3 {[%emt 0:00:44]} 41. Bxe4 {[%emt 0:32:29]} Rxe4 {[%emt 0:51:18]} 42. Rd8+ {[%emt 0:00:22]} Bf8 {[%emt 0:00:00]} 43. Rxc8 {[%emt 0:00:00]} Qa2 {[%emt 0:00:00]} 44. Rdd8 {[%emt 0:00:00]} 1-0

[Event "FIN-ch Seniors 65 2020"]
[Site "Helsinki"]
[Date "2020.09.24"]
[Round "1.2"]
[White "Terasalo, Kari"]
[Black "Karppinen, Martti"]
[Result "0-1"]
[ECO "B50"]
[WhiteElo "1782"]
[BlackElo "1878"]
[Annotator "NA"]
[PlyCount "74"]
[EventDate "2020.09.24"]
[EventType "swiss"]
[EventCountry "FIN"]
[SourceTitle "playchess.com"]
[Source "ChessBase"]
[SourceQuality "1"]
[TimeControl "40/5400+30:1800+30"]

1. e4 {[%emt 0:00:00]} c5 {[%emt 0:00:07]} 2. Nf3 {[%emt 0:00:00]} d6 {[%emt 0:01:22]} 3. Bc4 {[%emt 0:01:11]} e5 {[%emt 0:02:22]} 4. O-O {[%emt 0:02:56]} Be7 {[%emt 0:02:26]} 5. Nc3 {[%emt 0:00:11]} Nf6 {[%emt 0:01:34]} 6. Re1 {[%emt 0:02:37]} Nc6 {[%emt 0:01:57]} 7. Nd5 {[%emt 0:03:54]} O-O {[%emt 0:13:16]} 8. Nxe7+ {[%emt 0:01:12]} Nxe7 {[%emt 0:01:49]} 9. c3 {[%emt 0:00:41]} a6 {[%emt 0:00:52]} 10. d4 {[%emt 0:01:30]} Ng6 {[%emt 0:04:14]} 11. Bg5 {[%emt 0:09:11]} h6 {[%emt 0:02:29]} 12. Bxf6 {[%emt 0:11:34]} Qxf6 {[%emt 0:03:38]} 13. dxe5 {[%emt 0:02:48]} dxe5 {[%emt 0:02:54]} 14. Re3 {[%emt 0:04:06]} Nf4 {[%emt 0:05:55]} 15. Qf1 {[%emt 0:02:20]} Be6 {[%emt 0:07:11]} 16. Bxe6 {[%emt 0:04:55]} Qxe6 {[%emt 0:02:50]} 17. Nh4 {[%emt 0:05:33]} g6 {[%emt 0:01:19]} 18. g3 {[%emt 0:01:21]} Qf6 {[%emt 0:05:39]} 19. Nf3 {[%emt 0:13:10]} Ne6 {[%emt 0:03:06]} 20. Rd1 {[%emt 0:01:14]} Rad8 {[%emt 0:01:45]} 21. Rd5 {[%emt 0:02:32]} Rxd5 {[%emt 0:05:27]} 22. exd5 {[%emt 0:00:33]} Nc7 {[%emt 0:11:06]} 23. Qd1 {[%emt 0:06:23]} Qd6 {[%emt 0:05:02]} 24. Rxe5 {[%emt 0:04:41]} f6 {[%emt 0:00:33]} 25. Re2 {[%emt 0:00:59]} Qxd5 {[%emt 0:01:00]} 26. Rd2 {[%emt 0:04:53]} Qxa2 {[%emt 0:00:28]} 27. Rd7 {[%emt 0:00:44]} Ne6 {[%emt 0:05:29]} 28. b3 {[%emt 0:02:53]} Re8 {[%emt 0:04:47]} 29. Qd3 {[%emt 0:01:49]} f5 {[%emt 0:02:48]} 30. Nh4 {[%emt 0:01:11]} Qxb3 {[%emt 0:00:48]} 31. Nxg6 {[%emt 0:00:29]} Qb5 {[%emt 0:00:25]} 32. c4 {[%emt 0:01:28]} Qa4 {[%emt 0:00:25]} 33. Qxf5 {[%emt 0:00:59]} Qxd7 {[%emt 0:00:37]} 34. Nf4 {[%emt 0:00:52]} Qd1+ {[%emt 0:00:22]} 35. Kg2 {[%emt 0:00:13]} Nxf4+ {[%emt 0:00:17]} 36. Qxf4 {[%emt 0:00:13]} Qd7 {[%emt 0:00:35]} 37. Qxh6 {[%emt 0:00:15]} Qc6+ {[%emt 0:00:16]} 0-1

[Event "FIN-ch Seniors 65 2020"]
[Site "Helsinki"]
[Date "2020.09.24"]
[Round "1.3"]
[White "Virtanen, Esko"]
[Black "Koskinen, Hannu E."]
[Result "0-1"]
[ECO "E92"]
[WhiteElo "1739"]
[BlackElo "1753"]
[Annotator "NA"]
[PlyCount "102"]
[EventDate "2020.09.24"]
[EventType "swiss"]
[EventCountry "FIN"]
[SourceTitle "playchess.com"]
[Source "ChessBase"]
[SourceQuality "1"]
[TimeControl "40/5400+30:1800+30"]

1. Nf3 {[%emt 0:00:00]} Nf6 {[%emt 0:00:00]} 2. d4 {[%emt 0:00:00]} g6 {[%emt 0:00:00]} 3. c4 {[%emt 0:00:00]} Bg7 {[%emt 0:00:00]} 4. Nc3 {[%emt 0:00:12]} O-O {[%emt 0:00:00]} 5. e4 {[%emt 0:01:01]} d6 {[%emt 0:00:00]} 6. Be2 {[%emt 0:00:55]} e5 {[%emt 0:00:15]} 7. dxe5 {[%emt 0:03:02]} dxe5 {[%emt 0:00:09]} 8. Qxd8 {[%emt 0:01:01]} Rxd8 {[%emt 0:00:02]} 9. O-O {[%emt 0:04:33]} c6 {[%emt 0:08:03]} 10. Nxe5 {[%emt 0:02:41]} Na6 {[%emt 0:03:36]} 11. Bg5 {[%emt 1:22:05]} Re8 {[%emt 0:01:53]} 12. f4 {[%emt 0:00:00]} Nc5 {[%emt 0:01:56]} 13. Bf3 {[%emt 0:00:00]} Ne6 {[%emt 0:11:40]} 14. Bxf6 {[%emt 0:00:00]} Bxf6 {[%emt 0:00:17]} 15. Nd3 {[%emt 0:00:00]} Nd4 {[%emt 0:15:44]} 16. e5 {[%emt 0:00:00]} Nxf3+ {[%emt 0:00:11]} 17. Rxf3 {[%emt 0:00:00]} Be7 {[%emt 0:03:05]} 18. h3 {[%emt 0:00:00]} h5 {[%emt 0:02:27]} 19. Ne4 {[%emt 0:00:00]} Rd8 {[%emt 0:01:44]} 20. c5 {[%emt 0:00:00]} b6 {[%emt 0:09:18]} 21. b4 {[%emt 0:00:00]} Rd4 {[%emt 0:05:35]} 22. Nd6 {[%emt 0:00:00]} Ba6 {[%emt 0:00:19]} 23. Rd1 {[%emt 0:00:00]} Rb8 {[%emt 0:05:22]} 24. Kf2 {[%emt 0:00:00]} Bxd3 {[%emt 0:02:58]} 25. Rdxd3 {[%emt 0:00:00]} Rxb4 {[%emt 0:00:14]} 26. cxb6 {[%emt 0:00:00]} axb6 {[%emt 0:11:17]} 27. Rb3 {[%emt 0:00:00]} Rxb3 {[%emt 0:01:56]} 28. axb3 {[%emt 0:00:00]} Bxd6 {[%emt 0:03:19]} 29. exd6 {[%emt 0:00:00]} Rd8 {[%emt 0:00:04]} 30. Rd3 {[%emt 0:00:00]} Kf8 {[%emt 0:00:12]} 31. Ke3 {[%emt 0:00:00]} Ke8 {[%emt 0:00:22]} 32. Ke4 {[%emt 0:00:00]} f6 {[%emt 0:00:21]} 33. g4 {[%emt 0:00:00]} hxg4 {[%emt 0:00:40]} 34. hxg4 {[%emt 0:00:00]} Kd7 {[%emt 0:00:32]} 35. f5 {[%emt 0:00:00]} Re8+ {[%emt 0:00:48]} 36. Kf4 {[%emt 0:00:00]} g5+ {[%emt 0:00:16]} 37. Kg3 {[%emt 0:00:00]} Re5 {[%emt 0:00:21]} 38. Kf3 {[%emt 0:00:00]} Rd5 {[%emt 0:00:24]} 39. Re3 {[%emt 0:00:00]} Rxd6 {[%emt 0:00:34]} 40. Ke4 {[%emt 0:00:00]} c5 {[%emt 0:01:43]} 41. Rc3 {[%emt 0:13:51]} Kc6 {[%emt 0:33:13]} 42. Kf3 {[%emt 0:01:05]} b5 {[%emt 0:01:47]} 43. Re3 {[%emt 0:04:25]} c4 {[%emt 0:02:50]} 44. bxc4 {[%emt 0:01:16]} bxc4 {[%emt 0:00:36]} 45. Re8 {[%emt 0:00:49]} Kc5 {[%emt 0:03:58]} 46. Rc8+ {[%emt 0:00:54]} Rc6 {[%emt 0:00:31]} 47. Rd8 {[%emt 0:00:03]} c3 {[%emt 0:01:30]} 48. Ke2 {[%emt 0:00:35]} c2 {[%emt 0:00:28]} 49. Kd2 {[%emt 0:00:04]} Rd6+ {[%emt 0:00:04]} 50. Rxd6 {[%emt 0:00:10]} Kxd6 {[%emt 0:00:02]} 51. Kxc2 {[%emt 0:00:17]} Ke5 {[%emt 0:00:06]} 0-1

[Event "FIN-ch Seniors 65 2020"]
[Site "Helsinki"]
[Date "2020.09.24"]
[Round "1.4"]
[White "Patola, Eero"]
[Black "Tiensuu, Seppo"]
[Result "1-0"]
[ECO "A36"]
[WhiteElo "1826"]
[BlackElo "1412"]
[Annotator "NA"]
[PlyCount "73"]
[EventDate "2020.09.24"]
[EventType "swiss"]
[EventCountry "FIN"]
[SourceTitle "playchess.com"]
[Source "ChessBase"]
[SourceQuality "1"]
[TimeControl "40/5400+30:1800+30"]

1. e4 {[%emt 0:00:00]} c5 {[%emt 0:00:00]} 2. c4 {[%emt 0:00:00]} Nc6 {[%emt 0:00:24]} 3. Nc3 {[%emt 0:00:00]} e5 {[%emt 0:00:46]} 4. g3 {[%emt 0:00:18]} Nf6 {[%emt 0:00:49]} 5. Bg2 {[%emt 0:00:38]} d6 {[%emt 0:01:59]} 6. h3 {[%emt 0:00:17]} Nb4 {[%emt 0:02:49]} 7. d3 {[%emt 0:00:37]} Qa5 {[%emt 0:02:36]} 8. Nge2 {[%emt 0:01:28]} Be6 {[%emt 0:02:26]} 9. O-O {[%emt 0:00:45]} a6 {[%emt 0:00:53]} 10. a3 {[%emt 0:03:13]} Nc6 {[%emt 0:00:13]} 11. f4 {[%emt 0:01:16]} h5 {[%emt 0:05:05]} 12. f5 {[%emt 0:00:42]} Bd7 {[%emt 0:00:33]} 13. Bd2 {[%emt 0:01:42]} Qc7 {[%emt 0:02:20]} 14. Bg5 {[%emt 0:01:01]} Be7 {[%emt 0:01:44]} 15. Qd2 {[%emt 0:05:19]} O-O-O {[%emt 0:01:32]} 16. Rfb1 {[%emt 0:06:37]} Be8 {[%emt 0:01:46]} 17. b4 {[%emt 0:03:19]} Nd4 {[%emt 0:01:04]} 18. b5 {[%emt 0:05:52]} axb5 {[%emt 0:04:51]} 19. Nxd4 {[%emt 0:00:40]} exd4 {[%emt 0:00:22]} 20. Nxb5 {[%emt 0:01:10]} Bxb5 {[%emt 0:01:46]} 21. Rxb5 {[%emt 0:00:29]} b6 {[%emt 0:05:53]} 22. Rab1 {[%emt 0:01:38]} Kd7 {[%emt 0:01:20]} 23. Bf4 {[%emt 0:06:01]} Rb8 {[%emt 0:03:10]} 24. Re1 {[%emt 0:03:05]} Ne8 {[%emt 0:04:53]} 25. e5 {[%emt 0:01:20]} Rg8 {[%emt 0:01:32]} 26. Bd5 {[%emt 0:02:19]} Rf8 {[%emt 0:02:15]} 27. Bxf7 {[%emt 0:03:23]} dxe5 {[%emt 0:02:20]} 28. Be6+ {[%emt 0:03:43]} Kd8 {[%emt 0:00:30]} 29. Rxe5 {[%emt 0:00:35]} Nd6 {[%emt 0:01:34]} 30. Rd5 {[%emt 0:02:05]} Ke8 {[%emt 0:03:49]} 31. Qe2 {[%emt 0:00:59]} g5 {[%emt 0:07:37]} 32. Qxh5+ {[%emt 0:01:31]} Kd8 {[%emt 0:00:16]} 33. Bxg5 {[%emt 0:03:20]} Bxg5 {[%emt 0:02:41]} 34. Qxg5+ {[%emt 0:00:15]} Ke8 {[%emt 0:00:39]} 35. Qh5+ {[%emt 0:06:46]} Nf7 {[%emt 0:01:39]} 36. Bd7+ {[%emt 0:03:28]} Ke7 {[%emt 0:01:53]} 37. Qh4+ {[%emt 0:00:38]} 1-0

[Event "FIN-ch Seniors 65 2020"]
[Site "Helsinki"]
[Date "2020.09.24"]
[Round "1.5"]
[White "Auvinen, Esa"]
[Black "Saharinen, Petri"]
[Result "1-0"]
[ECO "C19"]
[WhiteElo "1809"]
[BlackElo "1720"]
[Annotator "NA"]
[PlyCount "185"]
[EventDate "2020.09.24"]
[EventType "swiss"]
[EventCountry "FIN"]
[SourceTitle "playchess.com"]
[Source "ChessBase"]
[SourceQuality "1"]
[TimeControl "40/5400+30:1800+30"]

1. e4 {[%emt 0:00:00]} e6 {[%emt 0:00:00]} 2. d4 {[%emt 0:00:00]} d5 {[%emt 0:00:00]} 3. Nc3 {[%emt 0:00:00]} Bb4 {[%emt 0:00:00]} 4. e5 {[%emt 0:00:06]} c5 {[%emt 0:00:00]} 5. a3 {[%emt 0:02:33]} Bxc3+ {[%emt 0:00:11]} 6. bxc3 {[%emt 0:00:08]} Ne7 {[%emt 0:00:15]} 7. a4 {[%emt 0:00:50]} cxd4 {[%emt 0:02:38] C19: French: 3 Nc3 Bb4: Main line: 7 Nf3 and 7 a4.} 8. cxd4 {[%emt 0:00:33]} Qa5+ {[%emt 0:03:00]} 9. Qd2 {[%emt 0:01:55]} Qxd2+ {[%emt 0:02:08]} 10. Bxd2 {[%emt 0:00:08]} Nbc6 {[%emt 0:00:21]} 11. Nf3 {[%emt 0:02:40] [#]} a6 $146 {[%emt 0:00:13]} ({Predecessor:} 11... Nf5 12. Bc3 Bd7 13. Bd3 Rc8 14. Kd2 Rc7 15. Rhb1 O-O 16. a5 f6 17. Bb2 Rf7 18. Ba3 Nfxd4 19. Nxd4 Nxd4 {½-½ (54) Kravtsiv,M (2565)-Dgebuadze,A (2521) Metz 2011}) 12. Bd3 {[%emt 0:02:03]} h6 {[%emt 0:00:58]} 13. O-O {[%emt 0:00:51]} Nf5 {[%emt 0:00:19]} 14. Be3 {[%emt 0:04:43]} O-O {[%emt 0:00:33]} 15. g4 {[%emt 0:01:15]} Nxe3 {[%emt 0:03:51]} 16. fxe3 {[%emt 0:00:07]} Nb4 {[%emt 0:00:22]} 17. Rfb1 {[%emt 0:05:53]} a5 {[%emt 0:01:39]} 18. Rb2 {[%emt 0:01:26]} b6 {[%emt 0:02:02]} 19. Bb5 {[%emt 0:02:47]} Ba6 {[%emt 0:01:02]} 20. Bxa6 {[%emt 0:03:07]} Rxa6 {[%emt 0:00:30]} 21. c3 {[%emt 0:01:13]} Nc6 {[%emt 0:01:02]} 22. Rab1 {[%emt 0:00:35]} Rb8 {[%emt 0:00:19]} 23. Nd2 {[%emt 0:03:30]} g5 {[%emt 0:03:04]} 24. c4 {[%emt 0:00:26]} Nb4 {[%emt 0:00:18]} 25. cxd5 {[%emt 0:02:24]} exd5 {[%emt 0:05:23]} 26. Kf1 {[%emt 0:01:43]} Ra7 {[%emt 0:02:09]} 27. Ke2 {[%emt 0:01:10]} Re7 {[%emt 0:03:06]} 28. Rc1 {[%emt 0:02:09]} Rf8 {[%emt 0:06:38]} 29. Nf3 {[%emt 0:01:12]} f6 {[%emt 0:00:47]} 30. exf6 {[%emt 0:00:48]} Rxf6 {[%emt 0:00:39]} 31. Ne5 {[%emt 0:01:21]} Kg7 {[%emt 0:04:57]} 32. Rf1 {[%emt 0:05:38]} Rfe6 {[%emt 0:02:00]} 33. Rf3 {[%emt 0:02:08]} Nc6 {[%emt 0:06:33]} 34. Nxc6 {[%emt 0:05:00]} Rxc6 {[%emt 0:00:19]} 35. Rf5 {[%emt 0:00:57]} Rce6 {[%emt 0:04:00]} 36. Rb3 {[%emt 0:02:27]} Re4 {[%emt 0:00:27]} 37. Rxd5 {[%emt 0:03:57]} Rxg4 {[%emt 0:00:38]} 38. Rxb6 {[%emt 0:07:42]} Rg2+ {[%emt 0:01:40]} 39. Kd3 {[%emt 0:00:53]} Rxh2 {[%emt 0:00:14]} 40. Rdd6 {[%emt 0:03:16]} Rh3 {[%emt 0:00:51]} 41. Re6 {[%emt 0:30:23]} Rd7 {[%emt 0:37:43]} 42. Ke4 {[%emt 0:03:37]} Rh4+ {[%emt 0:07:38]} 43. Ke5 {[%emt 0:00:54]} g4 {[%emt 0:01:06]} 44. Rg6+ {[%emt 0:06:57]} Kh7 {[%emt 0:02:30]} 45. Kf4 {[%emt 0:06:07]} Re7 {[%emt 0:04:08]} 46. Rxg4 {[%emt 0:06:08]} Rxg4+ {[%emt 0:00:47]} 47. Kxg4 {[%emt 0:00:02]} Rxe3 {[%emt 0:00:12]} 48. Kf5 {[%emt 0:07:42]} h5 {[%emt 0:02:12]} 49. Kg5 {[%emt 0:00:00]} Rd3 {[%emt 0:00:00]} 50. Rb7+ {[%emt 0:00:00]} Kg8 {[%emt 0:00:00]} 51. Kg6 {[%emt 0:00:00]} Kf8 {[%emt 0:00:00]} 52. Kf6 {[%emt 0:00:00]} Ke8 {[%emt 0:00:00]} 53. Ke5 {[%emt 0:00:00]} Re3+ {[%emt 0:00:00]} 54. Kd6 {[%emt 0:00:00]} h4 {[%emt 0:00:00]} 55. Rb5 {[%emt 0:00:00]} h3 {[%emt 0:00:00]} 56. Rxa5 {[%emt 0:00:00]} Rd3 {[%emt 0:00:00]} 57. d5 {[%emt 0:00:00]} h2 {[%emt 0:00:00]} 58. Ra8+ {[%emt 0:00:00]} Kf7 {[%emt 0:27:38]} 59. Rh8 {[%emt 0:08:06]} Rd2 {[%emt 0:00:00]} 60. Kc6 {[%emt 0:00:00]} Ke7 {[%emt 0:00:00]} 61. Rh7+ {[%emt 0:00:00]} Kf6 {[%emt 0:00:00]} 62. d6 {[%emt 0:00:00]} Kg6 {[%emt 0:00:00]} 63. Rh3 {[%emt 0:00:00]} Rc2+ {[%emt 0:00:00]} 64. Kd7 {[%emt 0:00:00]} Kg5 {[%emt 0:00:00]} 65. Kd8 {[%emt 0:00:00]} Kg4 {[%emt 0:00:00]} 66. Rh8 {[%emt 0:00:00]} Kg3 {[%emt 0:00:00]} 67. d7 {[%emt 0:00:00]} Kg2 {[%emt 0:00:00]} 68. Ke7 {[%emt 0:00:00]} Re2+ {[%emt 0:00:00]} 69. Kd6 {[%emt 0:00:00]} Rd2+ {[%emt 0:00:00]} 70. Kc6 {[%emt 0:00:00]} Rc2+ {[%emt 0:00:00]} 71. Kb6 {[%emt 0:00:00]} Rb2+ {[%emt 0:00:00]} 72. Kc7 {[%emt 0:00:00]} Rc2+ {[%emt 0:00:00]} 73. Kd8 {[%emt 0:00:00]} h1=Q {[%emt 0:00:00]} 74. Rxh1 {[%emt 0:00:00]} Kxh1 {[%emt 0:00:00]} 75. a5 {[%emt 0:00:00]} Ra2 {[%emt 0:00:00]} 76. Kc7 {[%emt 0:00:00]} Rxa5 {[%emt 0:09:00]} 77. d8=Q {[%emt 0:09:00]} Ra3 {[%emt 0:00:00]} 78. Qd5+ {[%emt 0:00:00]} Kh2 {[%emt 0:00:00]} 79. Qd6+ {[%emt 0:00:00]} Rg3 {[%emt 0:00:00]} 80. Kc6 {[%emt 0:00:00]} Kg2 {[%emt 0:00:00]} 81. Kc5 {[%emt 0:00:00]} Rg5+ {[%emt 0:00:00]} 82. Kd4 {[%emt 0:00:00]} Rg4+ {[%emt 0:00:00]} 83. Ke3 {[%emt 0:00:00]} Rg3+ {[%emt 0:00:00]} 84. Ke2 {[%emt 0:00:00]} Rg5 {[%emt 0:00:00]} 85. Qf6 {[%emt 0:00:00]} Rg3 {[%emt 0:00:00]} 86. Qf1+ {[%emt 0:00:00]} (86. Qc6+ $142 Kh3 87. Qh1+ Kg4 88. Kf2 Ra3 89. Qd5 Rh3 90. Qe6+ Kh4 91. Qe7+ Kh5 92. Qh7+ Kg4 93. Qd7+ Kh4 94. Qe7+ Kh5 95. Qe8+ Kg5 96. Qe5+ Kg4 97. Qe4+ Kg5 98. Qe5+ Kg4 99. Qe6+ Kh4 100. Qe7+) 86... Kh2 {[%emt 0:00:00] [#]} 87. Qf4 $1 {[%emt 0:00:00]} Kg2 {[%emt 0:00:00]} 88. Qe4+ {[%emt 0:00:00]} Kg1 {[%emt 0:00:00]} 89. Ke1 {[%emt 0:00:00]} Rg2 {[%emt 0:00:00]} 90. Qd4+ {[%emt 0:00:00]} Kh2 {[%emt 0:00:00]} 91. Kf1 {[%emt 0:00:00]} Kh3 {[%emt 0:00:00]} 92. Qh8+ {[%emt 0:00:00]} Kg3 {[%emt 0:00:00]} 93. Qg7+ {[%emt 0:00:00]} 1-0

[Event "FIN-ch Seniors 65 2020"]
[Site "Helsinki"]
[Date "2020.09.25"]
[Round "2.2"]
[White "Karppinen, Martti"]
[Black "Auvinen, Esa"]
[Result "1/2-1/2"]
[ECO "E12"]
[WhiteElo "1878"]
[BlackElo "1809"]
[Annotator "NA RC"]
[PlyCount "106"]
[EventDate "2020.09.24"]
[EventType "swiss"]
[EventCountry "FIN"]
[SourceTitle "playchess.com"]
[Source "ChessBase"]
[SourceQuality "1"]
[TimeControl "40/5400+30:1800+30"]

{[%evp 8,106,18,27,20,8,22,0,4,0,0,0,7,32767,32767,-18,-6,-43,-17,-39,-27,-24,22,19,29,-48,-4,-99,-90,-205,-69,-71,-60,-86,-81,-83,-82,-81,32767,-81,-72,-63,-81,-79,-74,-75,-76,-69,-65,-93,-56,32767,-53,-47,-61,-112,-94,-100,-137,-169,-152,-171,-162,-203,-202,-263,-226,-279,-239,-335,-397,-569,-525,-638,-119,-341,0,-8,-8,0,0,0,0,0,0,0,0,0,8,0,0,0,0,0,32767,32767,32767,32767,32767,0,0]} 1. d4 {[%emt 0:01:51]} Nf6 {[%emt 0:00:00]} 2. c4 {[%emt 0:00:48]} e6 {[%emt 0:00:00]} 3. Bg5 {[%emt 0:01:23]} Be7 {[%emt 0:00:45]} 4. Nc3 {[%emt 0:04:44]} d5 {[%emt 0:03:25]} 5. Nf3 {[%emt 0:06:07]} O-O {[%emt 0:00:09]} 6. e3 {[%emt 0:00:44]} b6 {[%emt 0:00:08]} 7. Be2 {[%emt 0:05:51]} Bb7 {[%emt 0:00:16]} 8. O-O {[%emt 0:02:21]} Nbd7 {[%emt 0:02:17]} 9. Rc1 {[%emt 0:01:14]} dxc4 {[%emt 0:00:37]} 10. Bxc4 {[%emt 0:00:40]} c5 {[%emt 0:00:06]} 11. Be2 {[%emt 0:04:34] E12: Queen's Indian: Unusual White 4th moves, 4 a3, 4 Nc3 Bb7 5 a3 and 4 Nc3 Bb7 .} Rc8 {[%emt 0:00:28]} 12. Qa4 {[%emt 0:01:32] [#]} a6 $146 {[%emt 0:00:55]} ({Predecessor:} 12... Bc6 13. Qb3 h6 14. Bh4 Nd5 15. Bg3 Nxc3 16. bxc3 Nf6 17. Ba6 Ra8 18. Ne5 Qd5 19. Nxc6 Qxc6 {0-1 (49) Krol,K-Vanek,T (2060) Wroclaw 2005}) 13. Rfd1 {[%emt 0:01:47]} b5 {[%emt 0:01:37]} 14. Qb3 {[%emt 0:06:13]} Nd5 {[%emt 0:19:46]} (14... Qc7 $15) 15. Bxe7 {[%emt 0:05:00]} Qxe7 {[%emt 0:00:11]} 16. a3 {[%emt 0:03:56]} (16. Nxd5 $11 Bxd5 17. Qa3) 16... cxd4 {[%emt 0:03:08]} 17. exd4 {[%emt 0:07:27]} (17. Nxd4 $11 {remains equal.} Ne5 18. Nxd5 Bxd5 19. Qb4) 17... Nf4 {[%emt 0:01:53]} 18. Re1 {[%emt 0:04:01]} (18. Qc2 $17 {keeps fighting.}) 18... Nxe2+ {[%emt 0:06:28]} (18... Qf6 $19 19. Qc2 Nb6) 19. Nxe2 {[%emt 0:04:13]} Qf6 {[%emt 0:13:23]} 20. Red1 {[%emt 0:06:39]} Bxf3 {[%emt 0:00:53]} 21. Qxf3 {[%emt 0:01:04]} Qxf3 {[%emt 0:00:36]} 22. gxf3 {[%emt 0:00:22]} Nb6 {[%emt 0:00:43]} 23. b3 {[%emt 0:01:56]} Rfd8 {[%emt 0:02:44]} 24. Kf1 {[%emt 0:02:21]} Kf8 {[%emt 0:00:17]} 25. Rxc8 {[%emt 0:02:29]} Rxc8 {[%emt 0:00:16]} 26. Rc1 {[%emt 0:00:22]} Ke7 {[%emt 0:02:25]} 27. Rxc8 {[%emt 0:03:10]} Nxc8 {[%emt 0:00:11]} 28. Nc3 {[%emt 0:00:35]} Kd6 {[%emt 0:02:30]} 29. Ke2 {[%emt 0:01:01]} f5 {[%emt 0:00:56]} 30. Ke3 {[%emt 0:01:03]} Nb6 {[%emt 0:01:21]} 31. Kd3 {[%emt 0:03:26]} (31. f4 $15) 31... g5 {[%emt 0:01:55]} 32. Ne2 {[%emt 0:02:55]} Nd5 {[%emt 0:00:57]} 33. Kd2 {[%emt 0:02:41]} h5 {[%emt 0:01:25]} 34. Kd3 {[%emt 0:03:41] [#]} e5 $1 {[%emt 0:06:55]} 35. Ng3 {[%emt 0:04:22]} Nf4+ {[%emt 0:01:08]} 36. Kc3 {[%emt 0:01:45]} Ke6 {[%emt 0:02:48]} 37. dxe5 {[%emt 0:02:01]} h4 {[%emt 0:07:33]} ({Not} 37... Kxe5 38. Kd2 $17) 38. Nf1 {[%emt 0:00:47]} Kxe5 {[%emt 0:03:01]} 39. Kb4 {[%emt 0:01:16]} Kd4 {[%emt 0:04:19]} 40. Ne3 {[%emt 0:00:41]} Nd3+ $2 {[%emt 0:01:33]} (40... Kd3 $19 {and Black stays clearly on top.} 41. Nxf5 Ke2 42. Ng3+ Kxf2 43. Ne4+ Kg2 44. Nxg5 Kxh2) 41. Ka5 {[%emt 0:30:10]} Kc3 {[%emt 0:30:34]} 42. Nxf5 {[%emt 0:00:00]} Kxb3 {[%emt 0:00:00]} 43. Kxa6 {[%emt 0:00:00]} Kxa3 {[%emt 0:00:00]} 44. Kxb5 {[%emt 0:00:00]} Nxf2 {[%emt 0:00:00]} 45. Kc4 {[%emt 0:00:00]} Kb2 {[%emt 0:00:00]} 46. Kd4 {[%emt 0:00:00]} Kc2 {[%emt 0:00:00]} 47. Ke3 {[%emt 0:00:00]} Nh3 {[%emt 0:00:00]} 48. Ke2 {[%emt 0:00:00]} Kc3 {[%emt 0:00:00]} 49. Ke3 {[%emt 0:00:00]} Kb3 {[%emt 0:13:58]} 50. Kd4 {[%emt 0:05:47]} Nf2 {[%emt 0:00:30]} 51. f4 gxf4 {[%emt 0:00:30]} 52. Nxh4 {[%emt 0:01:00]} Ng4 {[%emt 0:00:30]} 53. h3 $11 {[%emt 0:00:30]} Nf2 1/2-1/2